bitfinex-derivatives/quotes_SOLF0:USTF0_20250514
["timestamp","ask_amount","ask_price","bid_price","bid_amount"]
[1747228315549,61.4,180.12,180.07,1.8839]
[1747228315744,71.05823595,180.12,180.04,1.774]
[1747228316646,5.5523,180.08,180.05,5.5529]
[1747228317041,71.05823595,180.12,180.04,1.774]
[1747228317242,76.60943595,180.12,180.07,5.5525]
[1747228317445,71.05823595,180.12,180.07,5.5525]
[1747228317638,5.5516,180.1,180.06,5.5527]
[1747228317843,71.05823595,180.12,180.04,1.774]
[1747228318043,61.4,180.16,180.04,1.774]
[1747228318342,61.4,180.16,180.12,5.5508]
[1747228318848,66.95,180.16,180.13,5.5505]
[1747228319347,61.4,180.16,180.14,5.5503]
[1747228319745,61.4,180.16,180.09,3.7248]
[1747228319944,5.5504,180.14,180.11,5.5511]
[1747228320648,5.5511,180.12,180.09,5.5518]
[1747228320847,71.05823595,180.16,180.08,61.4]
[1747228321044,9.65823595,180.13,180.04,5.3801]
[1747228321251,71.05823595,180.13,180.04,5.3801]
[1747228321749,5.5521,180.09,180.06,5.5527]
[1747228321940,66.9321,180.09,180.06,5.5527]
[1747228322248,61.38,180.09,180.07,5.5523]
[1747228322450,61.38,180.09,180.04,5.3801]
[1747228322951,364.0,180.17,180.04,5.3801]
[1747228323152,122.78,180.16,180.04,5.3801]
[1747228323449,5.5507,180.13,180.1,5.5514]
[1747228323650,122.78,180.16,180.06,61.4]
[1747228323849,5.5501,180.15,180.11,5.551]
[1747228324053,364.0,180.17,180.06,61.4]
[1747228324352,61.38,180.16,180.06,61.4]
[1747228324549,425.38,180.17,180.07,9.65823595]
[1747228325150,425.38,180.17,180.15,5.5498]
[1747228325650,66.9292,180.18,180.14,5.5501]
[1747228325946,61.38,180.18,180.11,61.4]
[1747228326151,5.5495,180.17,180.13,5.5505]
[1747228326353,61.38,180.18,180.11,61.4]
[1747228326655,61.38,180.18,180.16,5.5497]
[1747228326853,61.38,180.18,180.11,61.4]
[1747228327152,66.9294,180.18,180.14,5.5502]
[1747228327451,61.38,180.18,180.11,61.4]
[1747228327954,5.5503,180.15,180.11,66.9512]
[1747228328253,61.38,180.18,180.07,61.4]
[1747228329055,5.5501,180.15,180.11,5.551]
[1747228329255,61.38,180.18,180.07,61.4]
[1747228330155,5.5501,180.15,180.11,5.5512]
[1747228330455,61.38,180.18,180.11,5.5512]
[1747228330650,5.5505,180.14,180.07,61.4]
[1747228330854,61.36,180.13,180.07,61.4]
[1747228331455,61.36,180.13,180.04,5.3801]
[1747228332259,66.9107,180.13,180.1,5.5515]
[1747228332557,61.36,180.13,180.04,5.3801]
[1747228332959,61.36,180.13,180.1,5.5515]
[1747228333256,61.36,180.13,180.04,5.3801]
[1747228333457,61.36,180.13,180.05,5.5529]
[1747228333952,61.36,180.13,180.04,5.5534]
[1747228334157,61.36,180.13,180.03,61.4]
[1747228334559,61.36,180.13,180.03,66.9537]
[1747228335057,61.36,180.13,180.03,61.4]
[1747228335755,5.5516,180.1,180.03,61.4]
[1747228336357,5.5516,180.1,180.06,5.5526]
[1747228336657,5.5514,180.11,180.03,61.4]
[1747228336855,364.0,180.12,180.03,61.4]
[1747228337158,364.0,180.12,180.06,5.5525]
[1747228337349,364.0,180.12,180.03,61.4]
[1747228337550,364.0,180.12,180.07,5.5523]
[1747228337966,364.0,180.12,180.08,5.5522]
[1747228338355,364.0,180.12,180.03,61.4]
[1747228338649,5.5518,180.1,180.03,61.4]
[1747228339157,364.0,180.12,180.03,61.4]
[1747228339353,425.36,180.12,180.03,61.4]
[1747228339660,61.36,180.12,180.11,5.5513]
[1747228340154,5.5503,180.15,180.11,5.5513]
[1747228340359,364.0,180.17,180.03,61.4]
[1747228340360,425.36,180.17,180.08,61.4]
[1747228340561,425.36,180.17,180.09,66.894]
[1747228340756,425.36,180.17,180.14,5.5501]
[1747228341055,364.0,180.23,180.09,66.894]
[1747228341261,66.9081,180.22,180.09,66.894]
[1747228341665,61.36,180.22,180.09,66.894]
[1747228342361,61.36,180.22,180.09,5.494]
[1747228342664,61.36,180.22,180.09,66.894]
[1747228343361,61.36,180.22,180.1,5.5515]
[1747228343563,61.36,180.22,180.09,66.894]
[1747228343861,5.551,180.12,180.09,61.4]
[1747228344053,61.34,180.13,180.09,61.4]
[1747228344560,61.34,180.13,180.06,485.4126]
[1747228344858,61.34,180.13,180.03,1.9091]
[1747228345162,61.4,180.12,180.03,1.9091]
[1747228345763,5.5519,180.09,180.05,5.5531]
[1747228346259,61.34,180.1,180.03,1.9091]
[1747228347059,61.4,180.12,180.03,1.9091]
[1747228347258,61.34,180.11,180.03,1.9091]
[1747228347467,5.5522,180.08,180.04,5.5532]
[1747228347658,61.34,180.11,180.03,1.9091]
[1747228348164,9.67994545,180.1,180.02,61.4]
[1747228349163,5.5537,180.03,180.02,61.4]
[1747228349462,61.34,180.05,179.99,5.5549]
[1747228349864,5.5542,180.02,179.99,5.5549]
[1747228350067,61.34,180.05,179.98,61.32]
[1747228350362,5.5537,180.04,179.98,61.32]
[1747228350663,61.34,180.05,179.98,61.32]
[1747228350866,61.34,180.07,179.98,61.32]
[1747228351067,61.34,180.08,179.98,61.32]
[1747228351258,364.0,180.1,179.99,61.34]
[1747228351458,61.34,180.09,179.99,61.34]
[1747228351859,61.34,180.09,180.05,5.5529]
[1747228352059,425.34,180.1,180.03,61.34]
[1747228352564,5.5524,180.08,180.03,61.34]
[1747228353064,5.5519,180.09,180.05,5.5531]
[1747228353771,5.5519,180.09,180.04,5.5533]
[1747228354059,425.34,180.1,180.03,61.34]
[1747228354464,5.553,180.06,180.03,61.34]
[1747228354970,5.5526,180.07,180.04,5.5534]
[1747228355171,425.34,180.1,180.03,61.34]
[1747228355567,5.5524,180.08,180.04,5.5532]
[1747228355767,425.34,180.1,180.03,61.34]
[1747228356267,430.8917,180.1,180.04,3.5155]
[1747228356768,369.5517,180.1,180.06,5.5526]
[1747228356965,5.5519,180.09,180.06,5.5526]
[1747228357372,5.5519,180.09,180.05,5.553]
[1747228357670,5.5522,180.08,180.05,5.553]
[1747228357870,5.5522,180.08,180.04,3.5155]
[1747228358170,5.5527,180.07,180.04,3.5155]
[1747228358372,425.34,180.1,180.04,3.5155]
[1747228358771,5.5534,180.04,180.03,61.34]
[1747228358975,61.34,180.05,179.99,61.34]
[1747228359772,5.5536,180.04,180.0,5.5545]
[1747228360072,5.5536,180.04,179.99,61.34]
[1747228360372,5.5536,180.04,180.01,5.5543]
[1747228360872,5.5536,180.04,180.0,5.5546]
[1747228361072,5.5536,180.04,179.99,61.34]
[1747228361271,5.5539,180.03,179.99,61.34]
[1747228361470,61.34,180.05,179.99,61.34]
[1747228361668,5.5539,180.03,179.99,61.34]
[1747228362071,61.34,180.05,179.99,66.8949]
[1747228362273,5.5546,180.01,179.96,1.8866]
[1747228362570,61.34,180.05,179.96,1.8866]
[1747228362869,5.5539,180.03,179.96,1.8866]
[1747228363270,61.34,180.05,179.99,5.5549]
[1747228363470,61.34,180.05,179.96,1.8866]
[1747228364372,5.5543,180.02,179.96,1.8866]
[1747228364572,61.34,180.05,179.96,1.8866]
[1747228364871,5.5549,180.0,179.96,7.4423]
[1747228365171,61.34,180.05,179.96,1.8866]
[1747228366076,5.5542,180.02,179.99,5.5548]
[1747228366275,61.34,180.05,179.96,1.8866]
[1747228366876,5.5549,180.0,179.97,5.5555]
[1747228367071,66.8949,180.0,179.97,5.5555]
[1747228367572,66.8949,180.0,179.98,5.5552]
[1747228367975,61.34,180.0,179.96,1.8866]
[1747228368671,61.34,180.0,179.97,5.5553]
[1747228368972,5.5546,180.01,179.79,61.36]
[1747228368973,16.69,179.97,179.79,61.36]
[1747228369177,122.7,179.99,179.89,5.5579]
[1747228369374,122.7,179.99,179.83,3.6842]
[1747228369575,122.7,179.99,179.85,61.36]
[1747228370576,122.7,179.99,179.89,5.558]
[1747228370774,5.5571,179.93,179.85,61.36]
[1747228370975,61.34,179.92,179.85,61.36]
[1747228372083,61.34,179.92,179.89,5.5579]
[1747228372483,61.34,179.92,179.85,61.36]
[1747228372679,61.34,179.92,179.88,5.5581]
[1747228373279,66.897,179.93,179.88,5.5581]
[1747228374281,61.34,179.93,179.85,61.36]
[1747228374484,489.73983269,180.01,179.86,9.69983269]
[1747228374781,61.34,180.0,179.87,61.34]
[1747228374983,61.34,180.0,179.87,63.2525]
[1747228376682,61.34,180.0,179.91,5.5574]
[1747228377284,5.5561,179.96,179.91,5.5574]
[1747228377688,61.34,179.95,179.91,5.5574]
[1747228377882,61.34,179.95,179.92,5.557]
[1747228378085,61.34,179.95,179.87,63.2525]
[1747228378382,61.34,179.95,179.91,5.5572]
[1747228378685,61.34,179.95,179.87,63.2525]
[1747228378994,61.34,179.95,179.91,5.5572]
[1747228379289,61.34,179.95,179.87,63.2525]
[1747228379484,61.34,179.95,179.91,5.5573]
[1747228379686,61.34,179.95,179.87,63.2525]
[1747228380182,61.34,179.95,179.91,5.5573]
[1747228380693,61.34,179.95,179.9,5.5577]
[1747228380893,61.34,179.95,179.87,1.9125]
[1747228381585,5.5569,179.93,179.89,5.5578]
[1747228381793,61.34,179.95,179.87,1.9125]
[1747228382189,61.32,179.97,179.87,11.61233269]
[1747228382792,66.8758,179.97,179.92,5.5568]
[1747228383388,5.5559,179.96,179.93,5.5566]
[1747228383693,61.32,179.97,179.89,61.34]
[1747228384092,66.8758,179.97,179.89,61.34]
[1747228385392,66.8758,179.97,179.93,5.5566]
[1747228385892,61.32,179.97,179.89,61.34]
[1747228386095,61.32,179.99,179.9,3.6858]
[1747228386491,61.32,179.99,179.97,5.5556]
[1747228386792,61.32,179.99,179.9,3.6858]
[1747228386990,364.0,180.0,179.9,3.6858]
[1747228387193,61.32,180.04,179.92,9.69983269]
[1747228387588,66.8736,180.04,180.0,5.5546]
[1747228387991,5.5536,180.04,180.01,5.5544]
[1747228388292,61.32,180.05,179.97,61.34]
[1747228388496,61.32,180.05,179.98,5.5175]
[1747228388686,61.32,180.05,180.04,5.5532]
[1747228389390,61.32,180.05,180.03,5.5536]
[1747228389695,61.32,180.05,179.98,15.21733269]
[1747228390599,61.32,180.05,180.04,5.5534]
[1747228391397,369.5522,180.08,180.04,5.5534]
[1747228391592,61.3,180.07,180.05,5.5531]
[1747228391796,61.3,180.07,179.98,5.5175]
[1747228392489,5.5532,180.05,179.98,5.5175]
[1747228393299,5.5532,180.05,180.0,5.5546]
[1747228393595,61.3,180.07,179.98,5.5175]
[1747228393796,9.69983269,180.06,179.97,61.34]
[1747228394201,5.5536,180.04,179.97,61.34]
[1747228394494,9.69983269,180.06,180.02,5.554]
[1747228394699,9.69983269,180.06,179.97,61.34]
[1747228395797,5.5543,180.02,179.99,5.5549]
[1747228395998,61.28,180.01,179.99,5.5549]
[1747228397400,66.8344,180.01,179.99,5.5549]
[1747228397701,61.28,180.01,179.93,64.9943]
[1747228397898,9.69983269,180.0,179.89,61.32]
[1747228398098,5.5558,179.97,179.89,61.32]
[1747228398500,9.69983269,180.0,179.89,61.32]
[1747228398693,5.5557,179.97,179.89,61.32]
[1747228398900,9.69983269,180.0,179.89,61.32]
[1747228399100,5.5551,179.99,179.89,61.32]
[1747228399303,61.26,179.98,179.89,61.32]
[1747228399503,61.26,179.98,179.94,5.5564]
[1747228399697,5.5558,179.97,179.89,61.32]
[1747228400003,5.5558,179.97,179.93,5.5566]
[1747228400799,61.26,179.98,179.91,5.5572]
[1747228401109,373.69983269,179.97,179.85,66.9543]
[1747228401303,425.32,179.96,179.85,66.9543]
[1747228401504,9.69983269,179.94,179.85,66.9543]
[1747228401803,5.5576,179.91,179.85,66.9543]
[1747228402303,5.5576,179.91,179.88,5.5582]
[1747228402605,61.26,179.93,179.85,66.9543]
[1747228403207,61.26,179.93,179.91,5.5574]
[1747228403507,61.26,179.93,179.85,66.9543]
[1747228404398,61.26,179.93,179.91,5.5573]
[1747228404697,61.26,179.93,179.85,66.9543]
[1747228406009,61.26,179.95,179.92,5.5569]
[1747228406307,61.26,179.95,179.85,128.2143]
[1747228406609,66.8162,179.95,179.85,128.2143]
[1747228407008,5.5566,179.94,179.9,5.5575]
[1747228407509,5.5572,179.92,179.88,5.5583]
[1747228407805,61.26,179.95,179.88,5.5583]
[1747228408209,5.5569,179.93,179.89,5.5579]
[1747228408507,364.0,179.96,179.85,66.9543]
[1747228408815,364.0,179.96,179.86,70.95983269]
[1747228409008,61.26,179.97,179.86,70.95983269]
[1747228409208,61.26,179.98,179.89,9.69983269]
[1747228409410,61.26,179.98,179.9,61.24]
[1747228411013,61.26,179.98,179.95,5.556]
[1747228411909,61.26,179.98,179.96,5.5559]
[1747228412211,61.26,179.98,179.9,61.24]
[1747228412406,61.26,179.98,179.95,5.5561]
[1747228412613,61.26,179.98,179.9,61.24]
[1747228414514,5.5546,180.01,179.9,61.24]
[1747228414709,61.24,180.0,179.93,5.5568]
[1747228414907,61.24,180.0,179.9,61.24]
[1747228416115,5.5555,179.98,179.94,5.5565]
[1747228416615,5.5551,179.99,179.95,5.5562]
[1747228417416,61.24,180.0,179.9,61.24]
[1747228417917,66.7948,180.0,179.96,5.5557]
[1747228418816,5.5552,179.99,179.95,5.5561]
[1747228419116,61.24,180.0,179.9,61.24]
[1747228419619,9.69983269,180.04,179.91,61.22]
[1747228419808,61.22,180.03,179.92,5.4115]
[1747228420009,66.7739,180.03,179.99,5.5549]
[1747228420518,61.22,180.03,180.0,5.5546]
[1747228420816,61.22,180.02,179.95,61.24]
[1747228421420,430.7933,180.05,180.02,5.554]
[1747228421619,61.2,180.04,180.02,5.554]
[1747228421821,61.2,180.04,179.95,61.24]
[1747228422421,5.5539,180.03,179.99,5.5548]
[1747228422620,5.5539,180.03,179.95,61.24]
[1747228422621,61.2,180.04,179.95,61.24]
[1747228424523,70.89983269,180.04,179.92,5.4115]
[1747228424723,70.89983269,180.04,179.93,61.24]
[1747228425022,66.7536,180.04,179.93,61.24]
[1747228425722,5.554,180.03,179.93,61.24]
[1747228426025,61.2,180.04,179.93,61.24]
[1747228426721,5.5541,180.02,179.93,61.24]
[1747228427926,5.5548,180.0,179.93,61.24]
[1747228428327,61.18,179.99,179.93,61.24]
[1747228429826,61.18,179.99,179.97,5.5553]
[1747228430424,61.18,179.99,179.96,5.5558]
[1747228430926,5.5555,179.98,179.94,5.5563]
[1747228431318,5.5555,179.98,179.93,61.24]
[1747228431522,66.7351,179.99,179.95,5.556]
[1747228431817,61.18,179.99,179.93,61.24]
[1747228432018,5.5556,179.98,179.95,5.556]
[1747228432421,61.18,179.99,179.93,61.24]
[1747228433528,61.18,179.99,179.98,5.5553]
[1747228435028,364.0,180.05,179.93,63.0497]
[1747228435232,61.14,180.04,179.93,63.0497]
[1747228435625,61.14,180.04,180.01,5.5542]
[1747228436330,66.6935,180.04,180.0,5.5546]
[1747228437032,61.14,180.04,180.01,5.5543]
[1747228437331,61.14,180.04,179.93,63.0497]
[1747228437532,61.14,180.04,179.93,74.1632]
[1747228438033,425.24,180.05,179.94,11.1129]
[1747228438233,364.0,180.05,180.04,5.5534]
[1747228438431,61.14,180.07,180.0,61.12]
[1747228438832,61.14,180.07,180.06,5.5528]
[1747228439034,61.12,180.08,180.01,3.7058]
[1747228439228,61.12,180.08,180.01,5.6016]
[1747228439425,61.12,180.09,180.01,5.6016]
[1747228439630,122.24,180.09,180.01,5.6016]
[1747228439826,61.12,180.1,180.01,5.6016]
[1747228440137,70.81983269,180.13,180.07,5.5523]
[1747228440539,61.12,180.12,180.07,5.5523]
[1747228441033,5.5513,180.11,180.07,5.5523]
[1747228441246,61.12,180.12,180.08,5.5521]
[1747228441545,61.12,180.12,180.01,5.6016]
[1747228441747,5.5513,180.11,180.07,5.5524]
[1747228442247,66.671,180.12,180.07,5.5524]
[1747228442645,66.671,180.12,180.01,5.6016]
[1747228443148,66.671,180.12,180.07,5.5523]
[1747228443446,61.12,180.12,180.01,5.6016]
[1747228444547,5.5521,180.09,180.01,5.6016]
[1747228444755,61.12,180.12,180.01,5.6016]
[1747228445047,66.671,180.12,180.01,5.6016]
[1747228445247,61.12,180.12,180.01,5.6016]
[1747228445449,9.69983269,180.1,180.01,3.7058]
[1747228445746,9.69983269,180.1,180.05,5.553]
[1747228446141,9.69983269,180.1,180.01,3.7058]
[1747228447449,5.5519,180.09,180.06,5.5526]
[1747228448446,9.69983269,180.1,180.01,1.9015]
[1747228448637,9.69983269,180.1,180.0,61.12]
[1747228448839,9.69983269,180.1,180.03,5.5535]
[1747228449146,9.69983269,180.1,180.0,61.12]
[1747228450048,5.5531,180.06,180.02,5.5541]
[1747228450249,61.06,180.05,180.0,61.12]
[1747228450546,61.06,180.05,180.03,5.5536]
[1747228450747,61.06,180.05,180.0,61.12]
[1747228451346,61.06,180.05,180.02,5.5538]
[1747228452649,66.6132,180.05,180.02,5.5538]
[1747228453948,61.06,180.05,180.0,61.12]
[1747228454652,66.6523,180.08,180.04,5.5534]
[1747228454847,364.0,180.09,180.0,61.12]
[1747228455149,364.0,180.09,180.0,131.85983269]
[1747228455946,364.0,180.09,180.03,9.69983269]
[1747228456144,364.0,180.09,180.04,5.452]
[1747228456453,364.0,180.09,180.08,5.5522]
[1747228456651,61.04,180.14,180.05,61.1]
[1747228457053,5.5509,180.13,180.08,5.552]
[1747228457253,61.04,180.14,180.08,5.552]
[1747228457454,5.5515,180.11,180.07,5.5525]
[1747228457653,61.04,180.14,180.04,5.452]
[1747228457852,61.04,180.14,180.04,66.552]
[1747228458049,5.5513,180.11,180.06,5.5527]
[1747228458250,61.04,180.14,180.04,66.552]
[1747228458652,5.5513,180.11,180.04,66.552]
[1747228459555,5.5513,180.11,180.06,5.5528]
[1747228460053,5.5513,180.11,180.07,5.5523]
[1747228460359,5.5516,180.1,180.04,66.552]
[1747228460557,61.04,180.14,180.04,72.1052]
[1747228460752,9.69983269,180.13,179.92,12.08035324]
[1747228461054,9.69983269,180.13,180.0,5.5546]
[1747228461055,9.69983269,180.1,180.0,5.5546]
[1747228461255,61.0,180.09,179.96,9.69983269]
[1747228461553,5.5535,180.04,180.0,5.5544]
[1747228461847,61.0,180.09,179.94,127.7811]
[1747228462355,5.5541,180.02,179.98,5.5553]
[1747228463051,5.5541,180.02,179.94,66.7811]
[1747228463356,70.69983269,180.04,179.94,64.9133]
[1747228463952,70.69983269,180.04,179.94,61.1]
[1747228464751,70.69983269,180.04,179.95,5.556]
[1747228465857,5.5556,179.97,179.9,61.1]
[1747228466054,60.98,179.97,179.9,61.1]
[1747228466356,66.5356,179.97,179.94,5.5564]
[1747228466557,66.5356,179.97,179.9,61.1]
[1747228467657,60.98,179.97,179.9,61.1]
[1747228467858,9.69983269,179.95,179.86,60.98]
[1747228468063,5.5577,179.91,179.87,5.5586]
[1747228468260,60.98,179.91,179.86,60.98]
[1747228468855,5.558,179.9,179.86,60.98]
[1747228469557,5.558,179.9,179.87,5.5586]
[1747228469758,66.5375,179.91,179.87,5.5586]
[1747228470259,5.5578,179.9,179.87,5.5586]
[1747228471059,66.5375,179.91,179.87,5.5586]
[1747228471854,60.98,179.91,179.86,60.98]
[1747228472354,60.98,179.91,179.87,5.5585]
[1747228472556,60.98,179.91,179.86,60.98]
[1747228473161,66.5375,179.91,179.86,60.98]
[1747228473855,66.5375,179.91,179.87,5.5585]
[1747228474261,66.5375,179.91,179.86,60.98]
[1747228474668,60.98,179.91,179.86,60.98]
[1747228475061,364.0,179.96,179.86,60.98]
[1747228475262,127.5163,179.95,179.86,60.98]
[1747228475460,121.96,179.95,179.86,60.98]
[1747228476058,127.5163,179.95,179.91,5.5574]
[1747228476261,121.96,179.95,179.86,60.98]
[1747228476764,5.5569,179.93,179.89,5.5579]
[1747228476962,121.96,179.95,179.86,60.98]
[1747228477264,5.5567,179.94,179.86,60.98]
[1747228478464,5.5567,179.94,179.9,5.5576]
[1747228480166,5.5569,179.93,179.9,5.5576]
[1747228480366,121.96,179.95,179.91,5.5573]
[1747228480768,5.5567,179.94,179.9,5.5577]
[1747228480967,121.96,179.95,179.9,5.5577]
[1747228481266,121.96,179.95,179.86,60.98]
[1747228481869,5.5568,179.94,179.86,60.98]
[1747228482265,121.96,179.95,179.86,60.98]
[1747228482266,127.5163,179.95,179.91,5.5572]
[1747228482464,121.96,179.95,179.86,60.98]
[1747228482668,60.94,179.94,179.86,60.98]
[1747228482967,60.94,179.94,179.92,5.5569]
[1747228483163,60.94,179.94,179.86,60.98]
[1747228483868,5.5574,179.92,179.88,5.5582]
[1747228484068,5.5574,179.92,179.86,60.98]
[1747228484365,5.5575,179.91,179.86,60.98]
[1747228484866,5.5575,179.91,179.88,5.5582]
[1747228485066,60.94,179.94,179.86,60.98]
[1747228485368,61.0,179.95,179.86,60.98]
[1747228485568,60.92,179.94,179.86,60.98]
[1747228486267,66.4767,179.94,179.91,5.5573]
[1747228486468,424.92,179.96,179.86,60.98]
[1747228486668,5.5564,179.95,179.91,5.5572]
[1747228486870,5.5564,179.95,179.86,60.98]
[1747228487370,5.5566,179.94,179.91,5.5573]
[1747228487571,61.0,179.95,179.86,60.98]
[1747228487772,61.0,179.95,179.88,5.5582]
[1747228487967,5.5573,179.92,179.86,60.98]
[1747228488171,60.92,179.91,179.86,60.98]
[1747228488573,60.92,179.91,179.9,5.5578]
[1747228488768,364.0,179.96,179.86,60.98]
[1747228489069,60.92,179.95,179.93,5.5566]
[1747228489971,60.92,179.95,179.94,5.5565]
[1747228490169,61.02,179.98,179.86,121.88]
[1747228490367,121.92,179.98,179.86,121.88]
[1747228490568,60.9,179.98,179.86,121.88]
[1747228490768,60.9,179.98,179.95,5.556]
[1747228491172,60.9,179.98,179.92,3.5653]
[1747228491474,60.9,179.99,179.92,3.5653]
[1747228491673,60.9,179.99,179.92,5.4658]
[1747228491973,60.9,179.99,179.97,5.5554]
[1747228492473,60.9,179.99,179.95,5.556]
[1747228492676,60.9,179.99,179.92,3.5653]
[1747228493070,5.5558,179.97,179.94,5.5565]
[1747228493775,60.9,179.99,179.92,3.5653]
[1747228495676,60.9,179.99,179.96,5.5558]
[1747228495876,60.9,179.99,179.92,3.5653]
[1747228496474,60.9,179.99,179.97,5.5554]
[1747228496776,60.9,179.99,179.92,3.5653]
[1747228497277,5.5556,179.98,179.94,5.5563]
[1747228497576,5.5556,179.98,179.92,3.5653]
[1747228497776,66.4552,179.99,179.95,5.556]
[1747228499376,66.4552,179.99,179.96,5.5558]
[1747228499576,5.5553,179.98,179.92,3.5653]
[1747228499876,60.9,179.99,179.92,3.5653]
[1747228500377,60.9,179.99,179.89,61.0]
[1747228500580,5.5567,179.94,179.91,5.5573]
[1747228500878,60.84,179.94,179.89,61.0]
[1747228501077,60.84,179.94,179.85,64.5351]
[1747228501277,5.5569,179.93,179.9,5.5578]
[1747228501478,60.84,179.94,179.9,5.5578]
[1747228501676,5.557,179.93,179.9,5.5578]
[1747228502179,60.84,179.94,179.9,5.5578]
[1747228502370,5.5569,179.93,179.9,5.5578]
[1747228502573,60.84,179.94,179.85,64.5351]
[1747228502879,66.3968,179.94,179.85,64.5351]
[1747228503078,60.84,179.94,179.85,64.5351]
[1747228503479,5.5571,179.93,179.85,64.5351]
[1747228503983,5.5571,179.93,179.9,5.5576]
[1747228504479,70.53280642,179.97,179.85,64.5351]
[1747228504670,60.82,179.96,179.85,64.5351]
[1747228504873,364.0,179.99,179.86,9.69280642]
[1747228505072,60.82,179.98,179.87,60.82]
[1747228505880,5.5556,179.97,179.87,60.82]
[1747228506082,60.82,179.98,179.87,60.82]
[1747228506683,60.82,179.98,179.93,5.5565]
[1747228506883,60.82,179.98,179.91,60.84]
[1747228507285,66.3754,179.98,179.94,5.5563]
[1747228507581,60.82,179.98,179.94,5.5563]
[1747228507783,66.3754,179.98,179.94,5.5563]
[1747228507983,66.3754,179.98,179.95,5.5562]
[1747228508281,60.82,179.98,179.91,60.84]
[1747228508481,60.82,179.98,179.95,5.5561]
[1747228509081,364.0,179.99,179.92,3.6179]
[1747228509280,364.0,179.99,179.92,5.3894]
[1747228509483,364.0,179.99,179.97,5.5554]
[1747228509887,364.0,179.99,179.92,5.3894]
[1747228510484,364.0,179.99,179.94,5.5565]
[1747228510782,364.0,179.99,179.92,5.3894]
[1747228510980,60.84,179.98,179.89,60.84]
[1747228511281,9.69280642,179.97,179.89,60.84]
[1747228512078,60.78,179.96,179.94,5.5563]
[1747228512282,60.78,179.96,179.89,60.84]
[1747228512581,424.84,179.99,179.89,60.84]
[1747228512781,60.78,179.98,179.89,121.62]
[1747228513084,364.0,179.99,179.98,5.5553]
[1747228513682,9.69280642,180.06,179.95,5.4823]
[1747228513875,60.84,180.07,179.95,5.4823]
[1747228513876,60.78,180.05,179.95,5.4823]
[1747228514081,60.78,180.05,180.03,5.5537]
[1747228514289,60.84,180.07,179.95,5.4823]
[1747228514474,364.0,180.09,179.95,15.17510642]
[1747228514675,60.76,180.08,179.95,15.17510642]
[1747228515381,60.76,180.08,180.05,5.5529]
[1747228516086,60.76,180.08,180.04,5.5534]
[1747228516285,364.0,180.09,180.02,60.84]